fUSD/lending_fUSD_20250503
["ID","MTS","AMOUNT","RATE_DAILY","PERIOD"]
[359718227,1746276638598,-450.0,0.0001973,2]
[359718229,1746276638608,-450.0,0.0001973,2]
[359718231,1746276638617,-450.0,0.0001973,2]
[359718232,1746276638627,-706.38,0.0001973,2]
[359718234,1746276638636,-450.0,0.0001973,2]
[359718236,1746276638646,-450.0,0.0001973,2]
[359718238,1746276638656,-3689.72,0.0001973,2]
[359718240,1746276638665,-450.0,0.0001973,2]
[359718242,1746276638675,-372.21727,0.0001973,2]
[359718244,1746276638685,-450.0,0.0001973,2]
[359718246,1746276638694,-450.0,0.0001973,2]
[359718248,1746276638704,-450.0,0.0001973,2]
[359718250,1746276638713,-512.91345261,0.0001973,2]
[359718252,1746276638723,-450.0,0.0001973,2]
[359718254,1746276638732,-450.0,0.0001973,2]
[359718256,1746276638742,-450.0,0.0001973,2]
[359718258,1746276638751,-450.0,0.0001973,2]
[359718260,1746276638761,-450.0,0.0001973,2]
[359718262,1746276638770,-400.0,0.0001973,2]
[359718264,1746276638779,-450.0,0.0001973,2]
[359718266,1746276638789,-594.544831,0.0001973,2]
[359718268,1746276638798,-416.91615072,0.0001973,2]
[359718270,1746276638808,-450.0,0.0001973,2]
[359718272,1746276638818,-450.0,0.0001973,2]
[359718274,1746276638827,-450.0,0.0001973,2]
[359718276,1746276638838,-450.0,0.00019731,2]
[359718278,1746276638847,-450.0,0.00019731,2]
[359718280,1746276638857,-368.92898897,0.00019731,2]
[359718282,1746276638867,-450.0,0.00019731,2]
[359718284,1746276638877,-450.0,0.00019731,2]
[359718287,1746276638887,-450.0,0.00019731,2]
[359718289,1746276638896,-721.79,0.00019731,2]
[359718290,1746276638906,-450.0,0.00019731,2]
[359718293,1746276638916,-450.0,0.00019731,2]
[359718295,1746276638926,-450.0,0.00019731,2]
[359718297,1746276638936,-450.0,0.00019731,2]
[359718299,1746276638945,-450.0,0.00019731,2]
[359718301,1746276638955,-450.0,0.00019731,2]
[359718303,1746276638969,-450.0,0.00019731,2]
[359718305,1746276638979,-450.0,0.00019731,2]
[359718307,1746276638991,-450.0,0.00019731,2]
[359718309,1746276639002,-450.0,0.00019731,2]
[359718312,1746276639012,-450.0,0.00019731,2]
[359718314,1746276639022,-450.0,0.00019731,2]
[359718316,1746276639034,-450.0,0.00019731,2]
[359718318,1746276639045,-450.0,0.00019731,2]
[359718320,1746276639055,-450.0,0.00019731,2]
[359718322,1746276639067,-450.0,0.00019731,2]
[359718324,1746276639077,-450.0,0.00019731,2]
[359718326,1746276639087,-450.0,0.00019731,2]
[359718328,1746276639097,-450.0,0.00019731,2]
[359718329,1746276639107,-450.0,0.00019731,2]
[359718330,1746276639118,-450.0,0.00019731,2]
[359718331,1746276639128,-763.28,0.00019731,2]
[359718332,1746276639139,-450.0,0.00019731,2]
[359718333,1746276639149,-1049.09,0.00019731,2]
[359718334,1746276639159,-450.0,0.00019731,2]
[359718335,1746276639169,-450.0,0.00019731,2]
[359718336,1746276639179,-592.03,0.00019731,2]
[359718337,1746276639191,-450.0,0.00019731,2]
[359718338,1746276639201,-450.0,0.00019731,2]
[359718339,1746276639211,-450.0,0.00019731,2]
[359718340,1746276639221,-450.0,0.00019731,2]
[359718341,1746276639231,-450.0,0.00019731,2]
[359718342,1746276639241,-450.0,0.00019731,2]
[359718343,1746276639251,-473.42,0.00019731,2]
[359718344,1746276639261,-461.4,0.00019731,2]
[359718345,1746276639271,-450.0,0.00019731,2]
[359718346,1746276639281,-450.0,0.00019731,2]
[359718347,1746276639293,-450.0,0.00019731,2]
[359718348,1746276639303,-450.0,0.00019731,2]
[359718349,1746276639314,-450.0,0.00019731,2]
[359718350,1746276639324,-450.0,0.00019731,2]
[359718351,1746276639335,-450.0,0.00019731,2]
[359718352,1746276639345,-450.0,0.00019731,2]
[359718353,1746276639354,-546.77,0.00019731,2]
[359718354,1746276639364,-450.0,0.00019731,2]
[359718355,1746276639374,-450.0,0.00019731,2]
[359718356,1746276639384,-450.0,0.00019731,2]
[359718357,1746276639394,-450.0,0.00019731,2]
[359718358,1746276639404,-450.0,0.00019731,2]
[359718359,1746276639415,-450.0,0.00019731,2]
[359718360,1746276639424,-450.0,0.00019731,2]
[359718361,1746276639434,-450.0,0.00019731,2]
[359718362,1746276639444,-450.0,0.00019731,2]
[359718363,1746276639454,-450.0,0.00019731,2]
[359718364,1746276639464,-450.0,0.00019731,2]
[359718365,1746276639474,-450.0,0.00019731,2]
[359718366,1746276639485,-450.0,0.00019731,2]
[359718367,1746276639495,-450.0,0.00019731,2]
[359718368,1746276639505,-450.0,0.00019731,2]
[359718369,1746276639515,-450.0,0.00019731,2]
[359718370,1746276639525,-450.0,0.00019731,2]
[359718371,1746276639535,-450.0,0.00019731,2]
[359718372,1746276639546,-450.0,0.00019731,2]
[359718373,1746276639556,-450.0,0.00019731,2]
[359718374,1746276639566,-450.0,0.00019731,2]
[359718375,1746276639576,-450.0,0.00019731,2]
[359718376,1746276639587,-450.0,0.00019731,2]
[359718377,1746276639598,-450.0,0.00019731,2]
[359718378,1746276639608,-450.0,0.00019731,2]
[359718379,1746276639619,-450.0,0.00019731,2]
[359718380,1746276639630,-450.0,0.00019731,2]
[359718381,1746276639640,-450.0,0.00019731,2]
[359718382,1746276639650,-450.0,0.00019731,2]
[359718383,1746276639660,-450.0,0.00019731,2]
[359718384,1746276639670,-450.0,0.00019731,2]
[359718385,1746276639681,-450.0,0.00019731,2]
[359718386,1746276639691,-450.0,0.00019731,2]
[359718388,1746276639701,-424.0259524,0.00019731,2]
[359718389,1746276639711,-450.0,0.00019731,2]
[359718391,1746276639722,-450.0,0.00019731,2]
[359718392,1746276639732,-450.0,0.00019731,2]
[359718394,1746276639742,-450.0,0.00019731,2]
[359718395,1746276639752,-450.0,0.00019731,2]
[359718396,1746276639762,-450.0,0.00019731,2]
[359718397,1746276639773,-450.0,0.00019731,2]
[359718398,1746276639784,-450.0,0.00019731,2]
[359718399,1746276639795,-450.0,0.00019731,2]
[359718400,1746276639805,-450.0,0.00019731,2]
[359718402,1746276639815,-450.0,0.00019731,2]
[359718403,1746276639824,-450.0,0.00019731,2]
[359718404,1746276639834,-450.0,0.00019731,2]
[359718405,1746276639844,-450.0,0.00019731,2]
[359718406,1746276639854,-450.0,0.00019731,2]
[359718407,1746276639864,-763.83,0.00019731,2]
[359718408,1746276639874,-450.0,0.00019731,2]
[359718409,1746276639884,-450.0,0.00019731,2]
[359718410,1746276639894,-450.0,0.00019731,2]
[359718411,1746276639904,-450.0,0.00019731,2]
[359718412,1746276639915,-450.0,0.00019731,2]
[359718413,1746276639926,-450.0,0.00019731,2]
[359718414,1746276639936,-767.14,0.00019731,2]
[359718415,1746276639946,-450.0,0.00019731,2]
[359718416,1746276639956,-449.73983441,0.00019731,2]
[359718417,1746276639966,-450.0,0.00019731,2]
[359718418,1746276639976,-450.0,0.00019731,2]
[359718419,1746276639986,-450.0,0.00019731,2]
[359718420,1746276640000,-450.0,0.00019731,2]
[359718421,1746276640010,-450.0,0.00019731,2]
[359718422,1746276640020,-450.0,0.00019731,2]
[359718423,1746276640030,-450.0,0.00019731,2]
[359718424,1746276640041,-450.0,0.00019731,2]
[359718425,1746276640051,-450.0,0.00019731,2]
[359718426,1746276640061,-450.0,0.00019731,2]
[359718427,1746276640071,-450.0,0.00019731,2]
[359718428,1746276640082,-1552.19,0.00019731,2]
[359718429,1746276640092,-450.0,0.00019731,2]
[359718430,1746276640102,-450.0,0.00019731,2]
[359718431,1746276640112,-450.0,0.00019731,2]
[359718432,1746276640122,-450.0,0.00019731,2]
[359718433,1746276640132,-450.97,0.00019731,2]
[359718434,1746276640142,-450.0,0.00019731,2]
[359718435,1746276640152,-1052.85,0.00019731,2]
[359718436,1746276640162,-450.0,0.00019731,2]
[359718437,1746276640172,-604.99,0.00019731,2]
[359718438,1746276640182,-450.0,0.00019731,2]
[359718439,1746276640192,-465.28,0.00019731,2]
[359718440,1746276640201,-530.6,0.00019731,2]
[359718441,1746276640212,-450.0,0.00019731,2]
[359718442,1746276640222,-450.0,0.00019731,2]
[359718443,1746276640232,-858.11,0.00019731,2]
[359718444,1746276640242,-450.0,0.00019731,2]
[359718445,1746276640252,-5031.75,0.00019731,2]
[359718446,1746276640261,-1183.65,0.00019731,2]
[359718447,1746276640271,-450.0,0.00019731,2]
[359718448,1746276640281,-2464.59,0.00019731,2]
[359718449,1746276640291,-450.0,0.00019731,2]
[359718450,1746276640301,-450.0,0.00019731,2]
[359718451,1746276640311,-450.0,0.00019731,2]
[359718452,1746276640320,-450.0,0.00019731,2]
[359718453,1746276640331,-491.76,0.00019731,2]
[359718454,1746276640340,-450.0,0.00019731,2]
[359718455,1746276640350,-588.70547733,0.00019731,2]
[359718456,1746276640360,-450.0,0.00019731,2]
[359718457,1746276640370,-6030.97,0.00019731,2]
[359718458,1746276640380,-450.0,0.00019731,2]
[359718459,1746276640390,-450.0,0.00019731,2]
[359718460,1746276640400,-450.0,0.00019731,2]
[359718461,1746276640410,-450.0,0.00019731,2]
[359718462,1746276640420,-450.0,0.00019731,2]
[359718463,1746276640430,-450.0,0.00019731,2]
[359718464,1746276640440,-450.0,0.00019731,2]
[359718465,1746276640450,-450.0,0.00019731,2]
[359718466,1746276640460,-536.33,0.00019731,2]
[359718467,1746276640470,-450.0,0.00019731,2]
[359718468,1746276640479,-5633.86,0.00019731,2]
[359718469,1746276640489,-450.0,0.00019731,2]
[359718470,1746276640499,-551.6356764,0.00019731,2]
[359718471,1746276640510,-745.74,0.00019731,2]
[359718472,1746276640519,-826.69,0.00019731,2]
[359718473,1746276640529,-450.0,0.00019731,2]
[359718474,1746276640539,-450.0,0.00019731,2]
[359718475,1746276640549,-450.0,0.00019731,2]
[359718476,1746276640559,-1914.66,0.00019731,2]
[359718477,1746276640568,-450.0,0.00019731,2]
[359718478,1746276640578,-537.77,0.00019731,2]
[359718479,1746276640588,-450.0,0.00019731,2]
[359718480,1746276640597,-500.0,0.00019731,2]
[359718481,1746276640607,-450.0,0.00019731,2]
[359718482,1746276640616,-450.0,0.00019731,2]
[359718483,1746276640626,-450.0,0.00019731,2]
[359718484,1746276640636,-535.02,0.00019731,2]
[359718485,1746276640646,-464.05,0.00019731,2]
[359718486,1746276640656,-500.0,0.00019731,2]
[359718487,1746276640667,-450.0,0.00019731,2]
[359718488,1746276640676,-450.0,0.00019731,2]
[359718489,1746276640685,-450.0,0.00019731,2]
[359718490,1746276640695,-1924.5,0.00019731,2]
[359718491,1746276640704,-777.46,0.00019731,2]
[359718493,1746276640715,-450.0,0.00019731,2]
[359718495,1746276640725,-5772.05,0.00019731,2]
[359718497,1746276640737,-450.0,0.00019731,2]
[359718498,1746276640748,-450.0,0.00019731,2]
[359718499,1746276640758,-450.0,0.00019731,2]
[359718500,1746276640768,-450.0,0.00019731,2]
[359718501,1746276640778,-450.0,0.00019731,2]
[359718502,1746276641083,-450.0,0.00019731,2]
[359718503,1746276641093,-450.0,0.00019731,2]
[359718504,1746276641103,-479.87,0.00019731,2]
[359718505,1746276641113,-450.0,0.00019731,2]
[359718506,1746276641123,-450.0,0.00019731,2]
[359718507,1746276641132,-450.0,0.00019731,2]
[359718508,1746276641142,-450.0,0.00019731,2]
[359718509,1746276641151,-107641.17,0.00019731,2]
[359718510,1746276641161,-450.0,0.00019731,2]
[359718511,1746276641170,-551.94,0.00019731,2]
[359718512,1746276641179,-450.0,0.00019731,2]
[359718513,1746276641189,-450.0,0.00019731,2]
[359718514,1746276641198,-450.0,0.00019731,2]
[359718515,1746276641208,-368.23329625,0.00019731,2]
[359718516,1746276641217,-316.71372366,0.00019731,2]
[359718517,1746276641227,-450.0,0.00019731,2]
[359718518,1746276641236,-450.0,0.00019731,2]
[359718519,1746276641245,-500.0,0.00019731,2]
[359718520,1746276641255,-450.0,0.00019731,2]
[359718521,1746276641264,-450.0,0.00019731,2]
[359718522,1746276641273,-5529.94,0.00019731,2]
[359718523,1746276641282,-999.0,0.00019731,2]
[359718524,1746276641292,-1265.27,0.00019731,2]
[359718525,1746276641302,-450.0,0.00019731,2]
[359718526,1746276641311,-450.0,0.00019731,2]
[359718527,1746276641320,-741.68,0.00019731,2]
[359718528,1746276641330,-450.0,0.00019731,2]
[359718529,1746276641339,-26484.0,0.00019731,2]
[359718530,1746276641349,-536.74,0.00019731,2]
[359718531,1746276641358,-450.0,0.00019731,2]
[359718532,1746276641368,-450.0,0.00019731,2]
[359718533,1746276641378,-1884.27,0.00019731,2]
[359718534,1746276641388,-450.0,0.00019731,2]
[359718535,1746276641398,-450.0,0.00019731,2]
[359718536,1746276641408,-450.0,0.00019731,2]
[359718537,1746276641417,-450.0,0.00019731,2]
[359718538,1746276641427,-1434.08,0.00019731,2]
[359718539,1746276641436,-450.0,0.00019731,2]
[359718540,1746276641445,-669.19,0.00019731,2]
[359718541,1746276641457,-450.0,0.00019731,2]
[359718542,1746276641467,-744.87,0.00019731,2]
[359718543,1746276641476,-450.0,0.00019731,2]
[359718544,1746276641485,-450.0,0.00019731,2]
[359718545,1746276641495,-450.0,0.00019731,2]
[359718546,1746276641506,-15463.34,0.00019731,2]
[359718547,1746276641515,-450.0,0.00019731,2]
[359718548,1746276641524,-450.0,0.00019731,2]
[359718549,1746276641534,-661.98,0.00019731,2]
[359718550,1746276641544,-370.09115084,0.00019731,2]
[359718551,1746276641556,-450.0,0.00019731,2]
[359718552,1746276641566,-450.0,0.00019731,2]
[359718553,1746276641575,-664.38,0.00019731,2]
[359718554,1746276641584,-511.38,0.00019731,2]
[359718555,1746276641594,-450.0,0.00019731,2]
[359718556,1746276641606,-450.0,0.00019731,2]
[359718557,1746276641615,-1242.98,0.00019731,2]
[359718558,1746276641623,-450.0,0.00019731,2]
[359718559,1746276641633,-450.0,0.00019731,2]
[359718560,1746276641643,-450.0,0.00019731,2]
[359718561,1746276641651,-1013.37,0.00019731,2]
[359718562,1746276641660,-450.0,0.00019731,2]
[359718563,1746276641669,-461.54,0.00019731,2]
[359718564,1746276641679,-450.0,0.00019731,2]
[359718565,1746276641689,-450.0,0.00019731,2]
[359718566,1746276641700,-450.0,0.00019731,2]
[359718567,1746276641709,-512.28569738,0.00019731,2]
[359718568,1746276641718,-450.0,0.00019731,2]
[359718569,1746276641728,-450.0,0.00019731,2]
[359718570,1746276641738,-450.0,0.00019731,2]
[359718571,1746276641749,-450.0,0.00019731,2]
[359718572,1746276641758,-1506.98,0.00019731,2]
[359718573,1746276641767,-450.0,0.00019731,2]
[359718574,1746276641777,-450.0,0.00019731,2]
[359718575,1746276641786,-1042.33,0.00019731,2]
[359718576,1746276641795,-450.0,0.00019731,2]
[359718577,1746276641804,-450.0,0.00019731,2]
[359718578,1746276641814,-450.0,0.00019731,2]
[359718579,1746276641824,-450.0,0.00019731,2]
[359718580,1746276641834,-1021.96409913,0.00019731,2]
[359718581,1746276641844,-450.0,0.00019731,2]
[359718582,1746276641853,-450.0,0.00019731,2]
[359718583,1746276641863,-450.0,0.00019731,2]
[359718584,1746276641872,-450.0,0.00019731,2]
[359718585,1746276641884,-684.36,0.00019731,2]
[359718586,1746276641895,-450.0,0.00019731,2]
[359718587,1746276641906,-1229.88,0.00019731,2]
[359718588,1746276641917,-848.67,0.00019731,2]
[359718589,1746276641927,-450.0,0.00019731,2]
[359718590,1746276641936,-450.0,0.00019731,2]
[359718591,1746276641945,-450.0,0.00019731,2]
[359718592,1746276641955,-450.0,0.00019731,2]
[359718593,1746276641964,-450.0,0.00019731,2]
[359718594,1746276641974,-450.0,0.00019731,2]
[359718595,1746276641983,-450.0,0.00019731,2]
[359718596,1746276641995,-450.0,0.00019731,2]
[359718597,1746276642005,-450.0,0.00019731,2]
[359718598,1746276642014,-649.8,0.00019731,2]
[359718599,1746276642024,-562.94038197,0.00019731,2]
[359718600,1746276642034,-450.0,0.00019731,2]
[359718601,1746276642044,-398.2486717,0.00019731,2]
[359718602,1746276642055,-450.0,0.00019731,2]
[359718603,1746276642065,-532.11,0.00019731,2]
[359718604,1746276642075,-450.0,0.00019731,2]
[359718605,1746276642088,-625.95,0.00019731,2]
[359718606,1746276642098,-554.23,0.00019731,2]
[359718607,1746276642107,-533.2085114,0.00019731,2]
[359718608,1746276642118,-456.68072204,0.00019731,2]
[359718609,1746276642127,-450.0,0.00019731,2]
[359718610,1746276642137,-450.0,0.00019731,2]
[359718611,1746276642147,-697.51,0.00019731,2]
[359718612,1746276642157,-450.0,0.00019731,2]
[359718613,1746276642167,-793.7,0.00019731,2]
[359718614,1746276642176,-3957.4,0.00019731,2]
[359718615,1746276642186,-501.5,0.00019731,2]
[359718616,1746276642195,-450.0,0.00019731,2]
[359718617,1746276642204,-937.71,0.00019731,2]
[359718618,1746276642213,-450.0,0.00019731,2]
[359718619,1746276642223,-688.0,0.00019731,2]
[359718620,1746276642232,-641.96,0.00019731,2]
[359718621,1746276642242,-450.0,0.00019731,2]
[359718622,1746276642251,-450.0,0.00019731,2]
[359718623,1746276642261,-450.0,0.00019731,2]
[359718624,1746276642270,-536.24,0.00019731,2]
[359718625,1746276642279,-484.47874522,0.00019731,2]
[359718626,1746276642288,-450.0,0.00019731,2]
[359718627,1746276642297,-450.0,0.00019731,2]
[359718628,1746276642306,-450.0,0.00019731,2]
[359718629,1746276642314,-2239.79,0.00019731,2]
[359718630,1746276642323,-450.0,0.00019731,2]
[359718631,1746276642332,-450.0,0.00019731,2]
[359718632,1746276642342,-450.0,0.00019731,2]
[359718633,1746276642351,-450.0,0.00019731,2]
[359718634,1746276642360,-784.4,0.00019731,2]
[359718635,1746276642368,-450.0,0.00019731,2]
[359718636,1746276642378,-450.0,0.00019731,2]
[359718637,1746276642387,-487.38,0.00019731,2]
[359718638,1746276642396,-450.0,0.00019731,2]
[359718639,1746276642406,-450.0,0.00019731,2]
[359718640,1746276642415,-603.77,0.00019731,2]
[359718641,1746276642425,-345.30219097,0.00019731,2]
[359718642,1746276642435,-450.0,0.00019731,2]
[359718643,1746276642444,-5434.4,0.00019731,2]
[359718644,1746276642454,-292.02532154,0.00019731,2]
[359718645,1746276642463,-764.81,0.00019731,2]
[359718646,1746276642473,-450.0,0.00019731,2]
[359718647,1746276642482,-450.0,0.00019731,2]
[359718648,1746276642491,-450.0,0.00019732,2]
[359718649,1746276642501,-450.0,0.00019732,2]
[359718650,1746276642510,-450.0,0.00019732,2]
[359718651,1746276642519,-450.0,0.00019732,2]
[359718652,1746276642528,-450.0,0.00019732,2]
[359718653,1746276642537,-450.0,0.00019732,2]
[359718654,1746276642546,-450.0,0.00019732,2]
[359718655,1746276642555,-454.11846088,0.00019732,2]
[359718656,1746276642564,-450.0,0.00019732,2]
[359718657,1746276642573,-450.0,0.00019732,2]
[359718658,1746276642582,-450.0,0.00019732,2]
[359718659,1746276642592,-450.0,0.00019732,2]
[359718660,1746276642601,-450.0,0.00019732,2]
[359718661,1746276642610,-450.0,0.00019732,2]
[359718662,1746276642619,-579.91,0.00019732,2]
[359718663,1746276642628,-450.0,0.00019732,2]
[359718664,1746276642638,-450.0,0.00019732,2]
[359718665,1746276642647,-450.0,0.00019732,2]
[359718666,1746276642656,-450.0,0.00019732,2]
[359718667,1746276642665,-450.0,0.00019732,2]
[359718668,1746276642675,-450.0,0.00019732,2]
[359718669,1746276642685,-450.0,0.00019732,2]
[359718670,1746276642694,-450.0,0.00019732,2]
[359718671,1746276642703,-500.0,0.00019732,2]
[359718672,1746276642712,-450.0,0.00019732,2]
[359718673,1746276642721,-390.10366394,0.00019732,2]
[359718674,1746276642731,-619.59,0.00019732,2]
[359718675,1746276642740,-450.0,0.00019732,2]
[359718676,1746276642749,-450.0,0.00019732,2]
[359718677,1746276642758,-450.0,0.00019732,2]
[359718678,1746276642768,-615.67,0.00019732,2]
[359718679,1746276642777,-450.0,0.00019732,2]
[359718680,1746276642786,-450.0,0.00019732,2]
[359718681,1746276642795,-450.0,0.00019732,2]
[359718682,1746276642804,-523.20208212,0.00019732,2]
[359718683,1746276642813,-450.0,0.00019732,2]
[359718684,1746276642822,-450.0,0.00019732,2]
[359718685,1746276642832,-564.89707459,0.00019732,2]
[359718686,1746276642841,-814.62,0.00019732,2]
[359718687,1746276642850,-450.0,0.00019732,2]
[359718688,1746276642859,-510.92426429,0.00019732,2]
[359718689,1746276642868,-450.0,0.00019732,2]
[359718691,1746276642878,-450.0,0.00019732,2]
[359718692,1746276642887,-533.95367948,0.00019732,2]
[359718693,1746276642896,-450.0,0.00019732,2]
[359718694,1746276642905,-450.0,0.00019732,2]
[359718695,1746276642915,-482.04692344,0.00019732,2]
[359718696,1746276642924,-473.97622075,0.00019732,2]
[359718697,1746276642934,-450.0,0.00019732,2]
[359718698,1746276642943,-450.0,0.00019732,2]
[359718699,1746276642953,-450.0,0.00019732,2]
[359718700,1746276642962,-450.0,0.00019732,2]
[359718701,1746276642971,-450.0,0.00019732,2]
[359718702,1746276642981,-500.0,0.00019732,2]
[359718703,1746276642991,-529.54923781,0.00019732,2]
[359718704,1746276643003,-471.7155258,0.00019732,2]
[359718705,1746276643013,-474.5058927,0.00019732,2]
[359718706,1746276643023,-477.69010555,0.00019732,2]
[359718707,1746276643032,-450.0,0.00019732,2]
[359718708,1746276643043,-450.0,0.00019732,2]
[359718709,1746276643052,-450.0,0.00019732,2]
[359718710,1746276643061,-450.0,0.00019732,2]
[359718711,1746276643072,-420.59852288,0.00019732,2]
[359718712,1746276643082,-475.76929183,0.00019732,2]
[359718713,1746276643092,-450.0,0.00019732,2]
[359718714,1746276643102,-450.0,0.00019732,2]
[359718715,1746276643114,-450.0,0.00019732,2]
[359718716,1746276643124,-450.0,0.00019732,2]
[359718717,1746276643134,-450.0,0.00019732,2]
[359718718,1746276643143,-241.92087674,0.00019732,2]
[359718719,1746276643153,-450.0,0.00019732,2]
[359718720,1746276643162,-450.0,0.00019732,2]
[359718721,1746276643172,-479.60042015,0.00019732,2]
[359718722,1746276643181,-450.0,0.00019732,2]
[359718723,1746276643191,-560.84,0.00019732,2]
[359718724,1746276643200,-450.0,0.00019732,2]
[359718725,1746276643210,-474.8670517,0.00019732,2]
[359718726,1746276643219,-450.0,0.00019732,2]
[359718727,1746276643228,-450.0,0.00019732,2]
[359718728,1746276643237,-475.04609516,0.00019732,2]
[359718729,1746276643247,-450.0,0.00019732,2]
[359718730,1746276643256,-450.0,0.00019732,2]
[359718731,1746276643265,-528.20266746,0.00019732,2]
[359718732,1746276643274,-488.33646069,0.00019732,2]
[359718733,1746276643284,-474.32117263,0.00019732,2]
[359718734,1746276643293,-572.62453118,0.00019732,2]
[359718735,1746276643303,-496.91424386,0.00019732,2]
[359718736,1746276643313,-480.61657555,0.00019732,2]
[359718737,1746276643323,-450.0,0.00019732,2]
[359718738,1746276643334,-497.3834913,0.00019732,2]
[359718739,1746276643344,-450.0,0.00019732,2]
[359718740,1746276643355,-544.68239478,0.00019732,2]
[359718741,1746276643365,-450.0,0.00019732,2]
[359718742,1746276643377,-550.65940848,0.00019732,2]
[359718743,1746276643387,-450.0,0.00019732,2]
[359718744,1746276643396,-450.0,0.00019732,2]
[359718745,1746276643476,-185.50934107,0.00019732,2]
[359718746,1746276643486,-168.31041864,0.00019732,2]
[359718747,1746276643495,-450.0,0.00019732,2]
[359718748,1746276643504,-450.0,0.00019732,2]
[359718749,1746276643514,-615.72,0.00019732,2]
[359718750,1746276643523,-474.36454793,0.00019732,2]
[359718751,1746276643532,-450.0,0.00019732,2]
[359718752,1746276643542,-470.6803191,0.00019732,2]
[359718753,1746276643551,-681.27,0.00019732,2]
[359718754,1746276643560,-477.30005923,0.00019732,2]
[359718755,1746276643569,-450.0,0.00019732,2]
[359718756,1746276643578,-581.17319964,0.00019732,2]
[359718757,1746276643588,-450.0,0.00019732,2]
[359718758,1746276643597,-450.0,0.00019732,2]
[359718759,1746276643606,-582.0750284,0.00019732,2]
[359718760,1746276643616,-450.0,0.00019732,2]
[359718761,1746276643626,-450.0,0.00019732,2]
[359718762,1746276643635,-450.0,0.00019732,2]
[359718763,1746276643645,-450.0,0.00019732,2]
[359718764,1746276643654,-168.82327602,0.00019732,2]
[359718765,1746276643663,-450.0,0.00019732,2]
[359718766,1746276643673,-450.0,0.00019732,2]
[359718767,1746276643682,-713.62,0.00019732,2]
[359718768,1746276643691,-680.7,0.00019732,2]
[359718769,1746276643700,-450.0,0.00019732,2]
[359718770,1746276643708,-478.33957761,0.00019732,2]
[359718771,1746276643718,-167.75944272,0.00019732,2]
[359718772,1746276643727,-450.0,0.00019732,2]
[359718773,1746276643736,-450.0,0.00019732,2]
[359718774,1746276643745,-450.0,0.00019732,2]
[359718775,1746276643755,-472.61464909,0.00019732,2]
[359718776,1746276643764,-472.99754286,0.00019732,2]
[359718777,1746276643774,-505.94631352,0.00019732,2]
[359718778,1746276643783,-280.71919491,0.00019732,2]
[359718779,1746276643793,-450.0,0.00019732,2]
[359718780,1746276643803,-450.0,0.00019732,2]
[359718781,1746276643812,-450.0,0.00019732,2]
[359718782,1746276643822,-500.0,0.00019732,2]
[359718783,1746276643832,-450.0,0.00019732,2]
[359718784,1746276643841,-450.0,0.00019732,2]
[359718785,1746276643850,-480.0013835,0.00019732,2]